fUST/lending_fUST_20250723
["ID","MTS","AMOUNT","RATE_DAILY","PERIOD"]
[374295678,1753267856528,-478.61,0.00019726,2]
[374295679,1753267856538,-2516.3,0.00019726,2]
[374295680,1753267856548,-460.0,0.00019726,2]
[374295681,1753267856558,-460.0,0.00019726,2]
[374295682,1753267856567,-4806.97,0.00019726,2]
[374295683,1753267856578,-460.0,0.00019726,2]
[374295684,1753267856587,-500.0,0.00019726,2]
[374295685,1753267856597,-151.0,0.000198,2]
[374295686,1753267856606,-151.0,0.000198,2]
[374295687,1753267856616,-500.0,0.0001983,2]
[374295688,1753267856626,-500.0,0.0001983,2]
[374295689,1753267856635,-1635.41532556,0.00019855,2]
[374295690,1753267856645,-500.0,0.00019857,2]
[374295691,1753267856654,-151.0,0.000199,2]
[374295692,1753267856666,-156.64231511,0.00019973,2]
[374295693,1753267856676,-500.0,0.00019973,2]
[374295694,1753267856685,-500.0,0.00019973,2]
[374295695,1753267856694,-500.0,0.00019973,2]
[374295696,1753267856704,-151.0,0.0002,2]
[374295697,1753267856713,-227.0,0.0002,2]
[374295698,1753267856724,-151.0,0.0002,2]
[374295699,1753267856733,-198.0,0.0002,2]
[374295700,1753267856743,-948.0,0.0002,2]
[374295701,1753267856752,-531.0,0.0002,2]
[374295702,1753267856762,-460.0,0.0002,2]
[374295703,1753267856771,-460.0,0.0002,2]
[374295704,1753267856780,-460.0,0.0002,2]
[374295705,1753267856790,-469.64618594,0.0002,2]
[374295706,1753267856799,-460.0,0.0002,2]
[374295707,1753267856808,-4785.43,0.0002,2]
[374295708,1753267856818,-460.0,0.0002,2]
[374295709,1753267856828,-460.0,0.0002,2]
[374295710,1753267856837,-460.0,0.0002,2]
[374295711,1753267856846,-1656.58,0.0002,2]
[374295712,1753267856855,-460.0,0.0002,2]
[374295713,1753267856865,-460.0,0.0002,2]
[374295714,1753267856875,-460.0,0.0002,2]
[374295715,1753267856885,-460.0,0.0002,2]
[374295716,1753267856895,-460.0,0.0002,2]
[374295717,1753267856904,-460.0,0.0002,2]
[374295718,1753267856914,-460.0,0.0002,2]
[374295719,1753267856923,-460.0,0.0002,2]
[374295720,1753267856933,-460.0,0.0002,2]
[374295721,1753267856943,-592.2528239,0.0002,2]
[374295722,1753267856952,-460.0,0.0002,2]
[374295723,1753267856962,-460.0,0.0002,2]
[374295724,1753267856972,-460.0,0.0002,2]
[374295725,1753267856982,-460.0,0.0002,2]
[374295726,1753267856992,-460.0,0.0002,2]
[374295727,1753267857002,-460.0,0.0002,2]
[374295728,1753267857012,-460.0,0.0002,2]
[374295729,1753267857021,-601.52128618,0.0002,2]
[374295730,1753267857030,-460.0,0.0002,2]
[374295731,1753267857040,-460.0,0.0002,2]
[374295732,1753267857050,-460.0,0.0002,2]
[374295733,1753267857061,-460.0,0.0002,2]
[374295734,1753267857074,-460.0,0.0002,2]
[374295735,1753267857084,-460.0,0.0002,2]
[374295736,1753267857093,-530.65,0.0002,2]
[374295737,1753267857103,-460.0,0.0002,2]
[374295738,1753267857112,-460.0,0.0002,2]
[374295739,1753267857122,-460.0,0.0002,2]
[374295740,1753267857132,-460.0,0.0002,2]
[374295741,1753267857143,-460.0,0.0002,2]
[374295742,1753267857152,-649.42,0.0002,2]
[374295743,1753267857162,-1029.36,0.0002,2]
[374295744,1753267857171,-460.0,0.0002,2]
[374295745,1753267857180,-460.0,0.0002,2]
[374295746,1753267857190,-460.0,0.0002,2]
[374295747,1753267857200,-460.0,0.0002,2]
[374295748,1753267857210,-460.0,0.0002,2]
[374295749,1753267857220,-627.68,0.0002,2]
[374295750,1753267857229,-460.0,0.0002,2]
[374295751,1753267857238,-460.0,0.0002,2]
[374295752,1753267857248,-460.0,0.0002,2]
[374295753,1753267857257,-460.0,0.0002,2]
[374295754,1753267857266,-230.14,0.0002,2]
[374295755,1753267857275,-460.0,0.0002,2]
[374295756,1753267857285,-460.0,0.0002,2]
[374295757,1753267857295,-460.0,0.0002,2]
[374295758,1753267857305,-472.46262067,0.0002,2]
[374295759,1753267857315,-460.0,0.0002,2]
[374295760,1753267857324,-460.0,0.0002,2]
[374295761,1753267857335,-460.0,0.0002,2]
[374295762,1753267857345,-460.0,0.0002,2]
[374295763,1753267857355,-460.0,0.0002,2]
[374295764,1753267857365,-460.0,0.0002,2]
[374295765,1753267857375,-460.0,0.0002,2]
[374295766,1753267857384,-463.80601612,0.0002,2]
[374295767,1753267857394,-460.0,0.0002,2]
[374295768,1753267857403,-436.3044769,0.0002,2]
[374295769,1753267857412,-460.0,0.0002,2]
[374295770,1753267857422,-460.0,0.0002,2]
[374295771,1753267857431,-460.0,0.0002,2]
[374295772,1753267857440,-460.0,0.0002,2]
[374295773,1753267857450,-460.0,0.0002,2]
[374295774,1753267857461,-460.0,0.0002,2]
[374295775,1753267857472,-676.81,0.0002,2]
[374295776,1753267857482,-350.72948266,0.0002,2]
[374295777,1753267857492,-460.0,0.0002,2]
[374295778,1753267857502,-460.0,0.0002,2]
[374295779,1753267857512,-460.0,0.0002,2]
[374295780,1753267857522,-460.0,0.0002,2]
[374295781,1753267857532,-460.0,0.0002,2]
[374295782,1753267857542,-460.0,0.0002,2]
[374295783,1753267857552,-460.0,0.0002,2]
[374295784,1753267857562,-460.0,0.0002,2]
[374295785,1753267857571,-460.0,0.0002,2]
[374295786,1753267857581,-680.31,0.0002,2]
[374295787,1753267857591,-460.0,0.0002,2]
[374295788,1753267857601,-460.0,0.0002,2]
[374295789,1753267857610,-460.0,0.0002,2]
[374295790,1753267857620,-460.0,0.0002,2]
[374295791,1753267857629,-460.0,0.0002,2]
[374295792,1753267857639,-559.93,0.0002,2]
[374295793,1753267857648,-813.54,0.0002,2]
[374295794,1753267857659,-8358.88,0.0002,2]
[374295795,1753267857668,-2369.9,0.0002,2]
[374295796,1753267857678,-310.2779162,0.0002,2]
[374295797,1753267857688,-460.0,0.0002,2]
[374295798,1753267857698,-460.0,0.0002,2]
[374295799,1753267857708,-369.58098645,0.0002,2]
[374295800,1753267857718,-460.0,0.0002,2]
[374295801,1753267857731,-460.0,0.0002,2]
[374295802,1753267857741,-460.0,0.0002,2]
[374295803,1753267857751,-905.37,0.0002,2]
[374295804,1753267857761,-460.0,0.0002,2]
[374295805,1753267857771,-460.0,0.0002,2]
[374295806,1753267857781,-171.37755409,0.0002,2]
[374295807,1753267857790,-460.0,0.0002,2]
[374295808,1753267857800,-460.0,0.0002,2]
[374295809,1753267857809,-500.18,0.0002,2]
[374295810,1753267857819,-604.3,0.0002,2]
[374295811,1753267857828,-460.0,0.0002,2]
[374295812,1753267857839,-460.0,0.0002,2]
[374295813,1753267857848,-460.0,0.0002,2]
[374295814,1753267857857,-460.0,0.0002,2]
[374295815,1753267857867,-657.9,0.0002,2]
[374295816,1753267857876,-4227.59,0.0002,2]
[374295817,1753267857886,-460.0,0.0002,2]
[374295818,1753267857895,-460.0,0.0002,2]
[374295819,1753267857905,-460.0,0.0002,2]
[374295820,1753267857914,-460.0,0.0002,2]
[374295821,1753267857924,-642.08,0.0002,2]
[374295822,1753267857934,-460.0,0.0002,2]
[374295823,1753267857944,-460.0,0.0002,2]
[374295824,1753267857954,-460.0,0.0002,2]
[374295825,1753267857964,-466.75911472,0.0002,2]
[374295826,1753267857977,-460.0,0.0002,2]
[374295827,1753267857986,-915.33,0.0002,2]
[374295828,1753267857995,-2856.62,0.0002,2]
[374295829,1753267858005,-994.23,0.0002,2]
[374295830,1753267858014,-1742.24,0.0002,2]
[374295831,1753267858024,-460.0,0.0002,2]
[374295832,1753267858033,-279.20976402,0.0002,2]
[374295833,1753267858043,-3009.86,0.0002,2]
[374295834,1753267858052,-460.0,0.0002,2]
[374295835,1753267858062,-460.0,0.0002,2]
[374295836,1753267858076,-625.88,0.0002,2]
[374295837,1753267858085,-460.0,0.0002,2]
[374295838,1753267858095,-460.0,0.0002,2]
[374295839,1753267858104,-460.0,0.0002,2]
[374295840,1753267858146,-600.75,0.0002,2]
[374295841,1753267858155,-4438.6,0.0002,2]
[374295842,1753267858165,-460.0,0.0002,2]
[374295843,1753267858174,-460.0,0.0002,2]
[374295844,1753267858183,-460.0,0.0002,2]
[374295845,1753267858193,-460.0,0.0002,2]
[374295846,1753267858202,-616.96,0.0002,2]
[374295847,1753267858212,-460.0,0.0002,2]
[374295848,1753267858221,-460.0,0.0002,2]
[374295849,1753267858230,-486.18,0.0002,2]
[374295850,1753267858239,-1351.54,0.0002,2]
[374295851,1753267858248,-3660.59,0.0002,2]
[374295852,1753267858258,-544.36,0.0002,2]
[374295853,1753267858267,-460.0,0.0002,2]
[374295854,1753267858276,-460.0,0.0002,2]
[374295855,1753267858286,-460.0,0.0002,2]
[374295856,1753267858295,-460.0,0.0002,2]
[374295857,1753267858305,-460.0,0.0002,2]
[374295858,1753267858315,-15377.28,0.0002,2]
[374295859,1753267858324,-1379.73,0.0002,2]
[374295860,1753267858333,-460.0,0.0002,2]
[374295861,1753267858342,-637.64,0.0002,2]
[374295862,1753267858351,-460.0,0.0002,2]
[374295863,1753267858360,-500.0,0.0002,2]
[374295864,1753267858370,-467.85262096,0.0002,2]
[374295865,1753267858379,-460.0,0.0002,2]
[374295866,1753267858388,-460.0,0.0002,2]
[374295867,1753267858398,-460.0,0.0002,2]
[374295868,1753267858407,-460.0,0.0002,2]
[374295869,1753267858417,-460.0,0.0002,2]
[374295870,1753267858426,-460.0,0.0002,2]
[374295871,1753267858435,-460.0,0.0002,2]
[374295872,1753267858445,-460.0,0.0002,2]
[374295873,1753267858455,-2718.77,0.0002,2]
[374295874,1753267858464,-460.0,0.0002,2]
[374295875,1753267858474,-460.0,0.0002,2]
[374295876,1753267858484,-460.0,0.0002,2]
[374295877,1753267858493,-478.61,0.0002,2]
[374295878,1753267858502,-2516.3,0.0002,2]
[374295879,1753267858512,-460.0,0.0002,2]
[374295880,1753267858521,-4806.97,0.0002,2]
[374295881,1753267858531,-460.0,0.0002,2]
[374295882,1753267858540,-460.0,0.0002,2]
[374295883,1753267858550,-1000.0,0.00020021,2]
[374295884,1753267858559,-1000.93391383,0.00020021,2]
[374295885,1753267858568,-1000.0,0.00020021,2]
[374295886,1753267858578,-1000.0,0.00020021,2]
[374295887,1753267858587,-500.0,0.00020084,2]
[374295888,1753267858597,-151.0,0.000201,4]
[374295889,1753267858606,-680.144798,0.00020187,2]
[374295890,1753267858616,-1500.0,0.00020268,2]
[374295891,1753267858626,-1500.0,0.00020268,2]
[374295892,1753267858635,-1500.0,0.00020268,2]
[374295893,1753267858644,-1500.0,0.00020268,2]
[374295894,1753267858654,-460.0,0.00020273,2]
[374295895,1753267858663,-460.0,0.00020273,2]
[374295896,1753267858672,-460.0,0.00020273,2]
[374295897,1753267858682,-460.0,0.00020273,2]
[374295898,1753267858691,-4785.43,0.00020273,2]
[374295899,1753267858701,-460.0,0.00020273,2]
[374295900,1753267858711,-464.33747465,0.00020273,2]
[374295901,1753267858721,-1656.58,0.00020273,2]
[374295902,1753267858731,-460.0,0.00020273,2]
[374295903,1753267858740,-460.0,0.00020273,2]
[374295904,1753267858750,-460.0,0.00020273,2]
[374295905,1753267858759,-405.75432705,0.00020273,2]
[374295906,1753267858768,-460.0,0.00020273,2]
[374295907,1753267858778,-460.0,0.00020273,2]
[374295908,1753267858788,-460.0,0.00020273,2]
[374295909,1753267858797,-479.21620065,0.00020273,2]
[374295910,1753267858807,-460.0,0.00020273,2]
[374295911,1753267858816,-309.08,0.00020273,2]
[374295912,1753267858826,-460.0,0.00020273,2]
[374295913,1753267858836,-460.0,0.00020273,2]
[374295914,1753267858846,-460.0,0.00020273,2]
[374295915,1753267858855,-460.0,0.00020273,2]
[374295916,1753267858865,-460.0,0.00020273,2]
[374295917,1753267858875,-297.82594406,0.00020273,2]
[374295918,1753267858884,-530.65,0.00020273,2]
[374295919,1753267858894,-460.0,0.00020273,2]
[374295920,1753267858904,-460.0,0.00020273,2]
[374295921,1753267858914,-460.0,0.00020273,2]
[374295922,1753267858923,-460.0,0.00020273,2]
[374295923,1753267858933,-460.0,0.00020273,2]
[374295924,1753267858943,-649.42,0.00020273,2]
[374295925,1753267858953,-1029.36,0.00020273,2]
[374295926,1753267858962,-460.0,0.00020273,2]
[374295927,1753267858972,-460.0,0.00020273,2]
[374295928,1753267858982,-460.0,0.00020273,2]
[374295929,1753267858992,-465.86880002,0.00020273,2]
[374295930,1753267859002,-627.68,0.00020273,2]
[374295931,1753267859012,-460.0,0.00020273,2]
[374295932,1753267859022,-460.0,0.00020273,2]
[374295933,1753267859031,-460.0,0.00020273,2]
[374295934,1753267859041,-460.0,0.00020273,2]
[374295935,1753267859051,-418.82121395,0.00020273,2]
[374295936,1753267859061,-460.0,0.00020273,2]
[374295937,1753267859075,-460.0,0.00020273,2]
[374295938,1753267859085,-460.0,0.00020273,2]
[374295939,1753267859095,-460.0,0.00020273,2]
[374295940,1753267859105,-460.0,0.00020273,2]
[374295941,1753267859115,-460.0,0.00020273,2]
[374295942,1753267859124,-460.0,0.00020273,2]
[374295943,1753267859134,-472.37713478,0.00020273,2]
[374295944,1753267859144,-460.0,0.00020273,2]
[374295945,1753267859154,-495.24112983,0.00020273,2]
[374295946,1753267859164,-460.0,0.00020273,2]
[374295947,1753267859173,-460.0,0.00020273,2]
[374295948,1753267859183,-460.0,0.00020273,2]
[374295949,1753267859193,-460.0,0.00020273,2]
[374295950,1753267859202,-596.71647768,0.00020273,2]
[374295951,1753267859212,-676.81,0.00020273,2]
[374295952,1753267859222,-460.0,0.00020273,2]
[374295953,1753267859231,-460.0,0.00020273,2]
[374295954,1753267859241,-460.0,0.00020273,2]
[374295955,1753267859250,-460.0,0.00020273,2]
[374295956,1753267859260,-460.0,0.00020273,2]
[374295957,1753267859269,-460.0,0.00020273,2]
[374295958,1753267859278,-680.31,0.00020273,2]
[374295959,1753267859287,-186.93856878,0.00020273,2]
[374295960,1753267859297,-460.0,0.00020273,2]
[374295961,1753267859306,-460.0,0.00020273,2]
[374295962,1753267859315,-460.0,0.00020273,2]
[374295963,1753267859325,-559.93,0.00020273,2]
[374295964,1753267859334,-813.54,0.00020273,2]
[374295965,1753267859344,-8358.88,0.00020273,2]
[374295966,1753267859354,-2369.9,0.00020273,2]
[374295967,1753267859364,-475.66841129,0.00020273,2]
[374295968,1753267859374,-460.0,0.00020273,2]
[374295969,1753267859384,-460.0,0.00020273,2]
[374295970,1753267859394,-460.0,0.00020273,2]
[374295971,1753267859404,-460.0,0.00020273,2]
[374295972,1753267859413,-905.37,0.00020273,2]
[374295973,1753267859423,-498.32,0.00020273,2]
[374295974,1753267859433,-460.0,0.00020273,2]
[374295975,1753267859443,-460.0,0.00020273,2]
[374295976,1753267859452,-500.18,0.00020273,2]
[374295977,1753267859461,-460.0,0.00020273,2]
[374295978,1753267859471,-460.0,0.00020273,2]
[374295979,1753267859481,-460.0,0.00020273,2]
[374295980,1753267859490,-657.9,0.00020273,2]
[374295981,1753267859499,-4227.59,0.00020273,2]
[374295982,1753267859509,-460.0,0.00020273,2]
[374295983,1753267859518,-460.0,0.00020273,2]
[374295984,1753267859528,-642.08,0.00020273,2]
[374295985,1753267859537,-460.0,0.00020273,2]
[374295986,1753267859547,-460.0,0.00020273,2]
[374295987,1753267859556,-460.0,0.00020273,2]
[374295988,1753267859566,-915.33,0.00020273,2]
[374295989,1753267859575,-2856.62,0.00020273,2]
[374295990,1753267859585,-994.23,0.00020273,2]
[374295991,1753267859594,-1742.24,0.00020273,2]
[374295992,1753267859604,-460.0,0.00020273,2]
[374295993,1753267859613,-3009.86,0.00020273,2]
[374295994,1753267859622,-460.0,0.00020273,2]
[374295995,1753267859632,-460.0,0.00020273,2]
[374295996,1753267859641,-625.88,0.00020273,2]
[374295997,1753267859651,-460.0,0.00020273,2]
[374295998,1753267859661,-460.0,0.00020273,2]
[374295999,1753267859670,-564.6643063,0.00020273,2]
[374296000,1753267859680,-600.75,0.00020273,2]
[374296001,1753267859689,-4438.6,0.00020273,2]
[374296002,1753267859698,-175.19404414,0.00020273,2]
[374296003,1753267859708,-460.0,0.00020273,2]
[374296004,1753267859718,-616.96,0.00020273,2]
[374296005,1753267859728,-460.0,0.00020273,2]
[374296006,1753267859738,-460.0,0.00020273,2]
[374296007,1753267859748,-486.18,0.00020273,2]
[374296008,1753267859757,-1351.54,0.00020273,2]
[374296009,1753267859767,-3660.59,0.00020273,2]
[374296010,1753267859776,-544.36,0.00020273,2]
[374296011,1753267859785,-460.0,0.00020273,2]
[374296012,1753267859795,-460.0,0.00020273,2]
[374296013,1753267859804,-333.36683095,0.00020273,2]
[374296014,1753267859813,-460.0,0.00020273,2]
[374296015,1753267859823,-460.0,0.00020273,2]
[374296016,1753267859832,-1379.73,0.00020273,2]
[374296017,1753267859842,-15377.28,0.00020273,2]
[374296018,1753267859852,-532.99036941,0.00020273,2]
[374296019,1753267859862,-637.64,0.00020273,2]
[374296020,1753267859872,-460.0,0.00020273,2]
[374296021,1753267859882,-460.0,0.00020273,2]
[374296022,1753267859891,-460.0,0.00020273,2]
[374296023,1753267859901,-460.0,0.00020273,2]
[374296024,1753267859910,-460.0,0.00020273,2]
[374296025,1753267859920,-460.0,0.00020273,2]
[374296026,1753267859930,-460.0,0.00020273,2]
[374296027,1753267859941,-460.0,0.00020273,2]
[374296028,1753267859950,-2718.77,0.00020273,2]
[374296029,1753267859960,-460.0,0.00020273,2]
[374296030,1753267859970,-392.4689368,0.00020273,2]
[374296031,1753267859980,-478.61,0.00020273,2]
[374296032,1753267859989,-2516.3,0.00020273,2]
[374296033,1753267860000,-460.0,0.00020273,2]
[374296034,1753267860010,-4806.97,0.00020273,2]
[374296035,1753267860020,-167.32440616,0.00020274,2]
[374296036,1753267860030,-151.0,0.00020274,2]
[374296037,1753267860040,-948.0,0.00020274,2]
[374296038,1753267860050,-531.0,0.00020274,2]
[374296039,1753267860060,-500.0,0.00020274,2]
[374296040,1753267860072,-1635.41532556,0.00020288,2]
[374296041,1753267860082,-151.0,0.000203,3]
[374296042,1753267860092,-434.12,0.00020333,3]
[374296043,1753267860102,-1102.96,0.00020434,3]
[374296044,1753267860113,-551.48,0.00020434,3]
[374296045,1753267860123,-845.5,0.00020464,2]
[374296046,1753267860132,-500.66791734,0.00020521,2]
[374296047,1753267860142,-500.43577641,0.00020521,2]
[374296048,1753267860151,-1000.0,0.00020521,2]
[374296049,1753267860161,-460.0,0.00020547,2]
[374296050,1753267860170,-460.0,0.00020547,2]
[374296051,1753267860180,-460.0,0.00020547,2]
[374296052,1753267860190,-4785.43,0.00020547,2]
[374296053,1753267860199,-460.0,0.00020547,2]
[374296054,1753267860209,-1656.58,0.00020547,2]
[374296055,1753267860218,-460.0,0.00020547,2]
[374296056,1753267860228,-460.0,0.00020547,2]
[374296057,1753267860238,-460.0,0.00020547,2]
[374296058,1753267860247,-460.0,0.00020547,2]
[374296059,1753267860256,-460.0,0.00020547,2]
[374296060,1753267860266,-460.0,0.00020547,2]
[374296061,1753267860276,-460.0,0.00020547,2]
[374296062,1753267860285,-460.0,0.00020547,2]
[374296063,1753267860294,-460.0,0.00020547,2]
[374296064,1753267860304,-460.0,0.00020547,2]
[374296065,1753267860313,-460.0,0.00020547,2]
[374296066,1753267860323,-530.65,0.00020547,2]
[374296067,1753267860332,-460.0,0.00020547,2]
[374296068,1753267860342,-460.0,0.00020547,2]
[374296069,1753267860352,-568.99,0.00020547,2]
[374296070,1753267860362,-460.0,0.00020547,2]
[374296071,1753267860371,-197.09982549,0.00020547,2]
[374296072,1753267860380,-649.42,0.00020547,2]
[374296073,1753267860390,-1029.36,0.00020547,2]
[374296074,1753267860399,-460.0,0.00020547,2]
[374296075,1753267860410,-166.16714709,0.00020547,2]
[374296076,1753267860419,-460.0,0.00020547,2]
[374296077,1753267860429,-627.68,0.00020547,2]
[374296078,1753267860439,-460.0,0.00020547,2]
[374296079,1753267860449,-460.0,0.00020547,2]
[374296080,1753267860459,-460.0,0.00020547,2]
[374296081,1753267860468,-460.0,0.00020547,2]
[374296082,1753267860479,-460.0,0.00020547,2]
[374296083,1753267860490,-460.0,0.00020547,2]
[374296084,1753267860499,-460.0,0.00020547,2]
[374296085,1753267860508,-460.0,0.00020547,2]
[374296086,1753267860518,-460.0,0.00020547,2]
[374296087,1753267860528,-460.0,0.00020547,2]
[374296088,1753267860537,-460.0,0.00020547,2]
[374296089,1753267860546,-481.72036995,0.00020547,2]
[374296090,1753267860556,-676.81,0.00020547,2]
[374296091,1753267860565,-460.0,0.00020547,2]
[374296092,1753267860576,-460.0,0.00020547,2]
[374296093,1753267860585,-460.0,0.00020547,2]
[374296094,1753267860595,-460.0,0.00020547,2]
[374296095,1753267860604,-460.0,0.00020547,2]
[374296096,1753267860613,-680.31,0.00020547,2]
[374296097,1753267860623,-460.0,0.00020547,2]
[374296098,1753267860633,-460.0,0.00020547,2]
[374296099,1753267860642,-460.0,0.00020547,2]
[374296100,1753267860652,-559.93,0.00020547,2]
[374296101,1753267860661,-813.54,0.00020547,2]
[374296102,1753267860672,-8358.88,0.00020547,2]
[374296103,1753267860681,-2369.9,0.00020547,2]
[374296104,1753267860691,-460.0,0.00020547,2]
[374296105,1753267860700,-460.0,0.00020547,2]
[374296106,1753267860709,-460.0,0.00020547,2]
[374296107,1753267860719,-460.0,0.00020547,2]
[374296108,1753267860732,-905.37,0.00020547,2]
[374296109,1753267860741,-460.0,0.00020547,2]
[374296110,1753267860751,-460.0,0.00020547,2]
[374296111,1753267860761,-500.18,0.00020547,2]
[374296112,1753267860770,-460.0,0.00020547,2]
[374296113,1753267860780,-460.0,0.00020547,2]
[374296114,1753267860789,-460.0,0.00020547,2]
[374296115,1753267860799,-657.9,0.00020547,2]
[374296116,1753267860809,-4227.59,0.00020547,2]
[374296117,1753267860819,-460.0,0.00020547,2]
[374296118,1753267860828,-460.0,0.00020547,2]
[374296119,1753267860838,-642.08,0.00020547,2]
[374296120,1753267860847,-460.0,0.00020547,2]
[374296121,1753267860857,-460.0,0.00020547,2]
[374296122,1753267860867,-460.0,0.00020547,2]
[374296123,1753267860878,-915.33,0.00020547,2]
[374296124,1753267860890,-2856.62,0.00020547,2]
[374296125,1753267860900,-994.23,0.00020547,2]
[374296126,1753267860909,-1742.24,0.00020547,2]
[374296127,1753267860919,-460.0,0.00020547,2]
[374296128,1753267860929,-3009.86,0.00020547,2]
[374296129,1753267860938,-290.85998978,0.00020547,2]
[374296130,1753267860948,-460.0,0.00020547,2]
[374296131,1753267860959,-625.88,0.00020547,2]
[374296132,1753267860968,-460.0,0.00020547,2]
[374296133,1753267860981,-460.0,0.00020547,2]
[374296134,1753267860990,-600.75,0.00020547,2]
[374296135,1753267861000,-4438.6,0.00020547,2]
[374296136,1753267861010,-460.0,0.00020547,2]
[374296137,1753267861020,-616.96,0.00020547,2]
[374296138,1753267861030,-359.72951454,0.00020547,2]
[374296139,1753267861040,-460.0,0.00020547,2]
[374296140,1753267861050,-486.18,0.00020547,2]
[374296141,1753267861156,-1351.54,0.00020547,2]
[374296142,1753267861178,-3660.59,0.00020547,2]
[374296143,1753267861188,-544.36,0.00020547,2]
[374296144,1753267861199,-460.0,0.00020547,2]
[374296145,1753267861209,-460.0,0.00020547,2]
[374296146,1753267861219,-460.0,0.00020547,2]
[374296147,1753267861230,-1379.73,0.00020547,2]
[374296148,1753267861239,-15377.28,0.00020547,2]
[374296149,1753267861248,-637.64,0.00020547,2]
[374296150,1753267861258,-534.64,0.00020547,2]
[374296151,1753267861267,-460.0,0.00020547,2]
[374296152,1753267861276,-460.0,0.00020547,2]
[374296153,1753267861286,-460.0,0.00020547,2]
[374296154,1753267861295,-244.69830687,0.00020547,2]
[374296155,1753267861305,-460.0,0.00020547,2]
[374296156,1753267861314,-460.0,0.00020547,2]
[374296157,1753267861323,-460.0,0.00020547,2]
[374296158,1753267861333,-2718.77,0.00020547,2]
[374296159,1753267861343,-460.0,0.00020547,2]
[374296160,1753267861352,-478.61,0.00020547,2]
[374296161,1753267861362,-2516.3,0.00020547,2]
[374296162,1753267861372,-460.0,0.00020547,2]
[374296163,1753267861381,-4806.97,0.00020547,2]
[374296164,1753267861391,-198.0,0.00020548,2]
[374296165,1753267861401,-948.0,0.00020548,2]
[374296166,1753267861411,-531.0,0.00020548,2]
[374296167,1753267861422,-500.0,0.00020548,2]
[374296168,1753267861432,-221.97939668,0.00020568,2]
[374296169,1753267861442,-1500.0,0.00020568,2]
[374296170,1753267861451,-1500.0,0.00020568,2]
[374296171,1753267861461,-151.0,0.000206,3]
[374296172,1753267861471,-3452.35012833,0.00020642,2]
[374296173,1753267861482,-420.0,0.0002068,2]
[374296174,1753267861492,-3000.0,0.00020696,3]
[374296175,1753267861502,-3839.38033969,0.00020721,2]
[374296176,1753267861512,-1635.41532556,0.00020721,2]
[374296177,1753267861522,-214.67886746,0.00020765,2]